[Event "Reykjavik Open 2024"]
[Site "Reykjavik"]
[Date "2024.03.17"]
[Round "4.13"]
[White "Adhiban, B.."]
[Black "Domalchuk-Jonasson, Aleksandr"]
[Result "1-0"]
[ECO "C42"]
[WhiteElo "2541"]
[BlackElo "2355"]
[Annotator "TA"]
[PlyCount "65"]
[EventDate "2024.03.12"]
[EventCountry "ISL"]
[SourceTitle "playchess.com"]
[Source "ChessBase"]
[SourceQuality "1"]
[TimeControl "40/5400+30:1800+30"]

{[%evp 25,65,0,0,0,23,-12,0,-48,-22,-23,-23,-29,-25,-39,-30,-30,-31,-34,-22,-46,-26,-62,-4,-45,94,103,111,78,267,122,112,109,126,115,122,112,144,146,475,475,29966,29968]} 1. e4 {[%emt 0:00:03]} e5 {[%emt 0:00:10]} 2. Nf3 {[%emt 0:00:06]} Nf6 {[%emt 0:00:11]} 3. Nxe5 {[%emt 0:00:28]} d6 {[%emt 0:00:16]} 4. Nf3 {[%emt 0:00:04]} Nxe4 {[%emt 0:00:10]} 5. d4 {[%emt 0:00:39]} d5 {[%emt 0:00:44]} 6. Bd3 {[%emt 0:00:18]} Bd6 {[%emt 0:00:17]} 7. O-O {[%emt 0:00:33]} O-O {[%emt 0:00:19]} 8. c4 {[%emt 0:00:42]} c6 {[%emt 0:01:06]} 9. cxd5 {[%emt 0:01:59]} cxd5 {[%emt 0:00:16]} 10. Nc3 {[%emt 0:00:16]} Nxc3 {[%emt 0:07:55]} 11. bxc3 {[%emt 0:00:03]} Bg4 {[%emt 0:13:08]} 12. h3 {[%emt 0:19:09]} Bh5 {[%emt 0:01:04]} 13. Rb1 {[%emt 0:00:07]} b6 {[%emt 0:06:33]} 14. Re1 {[%emt 0:12:57]} Nc6 {[%emt 0:05:10]} 15. Kh1 {[%emt 0:18:11]} (15. g3 $5) 15... Re8 {[%emt 0:11:25]} 16. Be3 {[%emt 0:02:15]} (16. Rxe8+ $11 Qxe8 17. Bd2) 16... Bc7 {[%emt 0:04:42]} 17. g4 {[%emt 0:23:20]} Bg6 {[%emt 0:00:23]} 18. Bxg6 {[%emt 0:00:10]} hxg6 {[%emt 0:00:53]} 19. Bg5 {[%emt 0:00:10]} Rxe1+ {[%emt 0:08:28]} 20. Qxe1 {[%emt 0:00:26]} Qd7 {[%emt 0:00:15]} 21. Qf1 {[%emt 0:02:21]} Re8 {[%emt 0:01:06]} 22. Re1 {[%emt 0:00:45]} Re4 {[%emt 0:02:12]} 23. Be3 {[%emt 0:02:22]} Qd6 {[%emt 0:06:33]} ({Black should try} 23... Na5 $15) 24. Qg2 {[%emt 0:00:10]} Qa3 {[%emt 0:01:48] [#]} (24... f6 $15 {stays ahead.}) 25. Ng5 $1 $16 {[%emt 0:03:10]} Qxc3 {[%emt 0:12:44]} 26. Qf1 {[%emt 0:01:59]} (26. Nxe4 $2 {is the wrong capture.} Qxe1+ 27. Qg1 Qxg1+ 28. Kxg1 dxe4 $19) ({Don't go for} 26. Rc1 $2 Qxc1+ 27. Bxc1 Re1+ $19 (27... Rxd4 $2 28. Qf3 $18) (27... Rxd4 $2 28. Qf3 $18)) 26... Nxd4 $2 {[%emt 0:04:16]} (26... Qb4 $16) 27. Nxe4 {[%emt 0:03:21]} (27. Rc1 $1 $18 {[%cal Rc1c3]} Nc2 28. Qe2) 27... dxe4 {[%emt 0:00:05]} 28. Rc1 {[%emt 0:02:14]} Nc2 {[%emt 0:00:03] [#]} 29. Qd1 $1 $36 {[%emt 0:05:58][%mdl 2048] White is on the roll.} Qe5 {[%emt 0:07:58]} 30. f4 {[%emt 0:00:07]} (30. Rxc2 $2 Qh2#) 30... exf3 {[%emt 0:01:41]} 31. Rxc2 {[%emt 0:00:20]} (31. Qxc2 Qg3 32. Rb1 (32. Qxc7 $2 Qg2#) 32... Qxh3+ 33. Kg1 Qxg4+ 34. Kf1 Bg3 $15) 31... Qxe3 {[%emt 0:00:03][%mdl 8192]} (31... f2 $16 32. Rxc7 (32. Bxf2 $2 Qh2#) 32... f1=Q+ 33. Qxf1 Qxc7) 32. Rxc7 $18 {[%emt 0:00:07] Qd8+ is the strong threat.} f2 {[%emt 0:00:05]} (32... Qf2 $18 33. Rc2 (33. Rxa7 $2 Qg2#) 33... Qg3) 33. Qd8+ {[%emt 0:00:08] Weighted Error Value: White=0.23 (precise) /Black=0.89.  Loses game:     	---       	Black=2      Mistake:       	White=2     	Black=3      Inaccurate:     	White=3     	Black=1      OK:         	White=2     	Black=4      Best:        	White=4     	Black=1      Strong:       	White=2     	---} (33. Rxa7 $2 Qxh3#) 1-0

[Event "Reykjavik Open 2024"]
[Site "Reykjavik"]
[Date "2024.03.17"]
[Round "4.14"]
[White "Krzyzanowski, Marcin"]
[Black "Thorfinnsson, Bjorn"]
[Result "0-1"]
[ECO "C47"]
[WhiteElo "2524"]
[BlackElo "2353"]
[Annotator "TA"]
[PlyCount "130"]
[EventDate "2024.03.12"]
[EventCountry "ISL"]
[SourceTitle "playchess.com"]
[Source "ChessBase"]
[SourceQuality "1"]
[TimeControl "40/5400+30:1800+30"]

{[%evp 9,130,19,20,25,20,25,38,23,62,39,52,51,54,42,57,59,60,36,110,106,120,119,125,127,127,135,132,136,124,146,211,202,231,233,248,159,170,178,170,165,264,290,312,328,297,208,206,208,189,199,206,177,179,197,189,-116,-121,-414,-407,-402,-377,-612,-418,-438,-441,-402,-156,-145,-167,-185,-136,-131,-62,-123,-142,-147,-131,-231,-231,-266,-261,-259,-267,-265,-257,-472,-495,-572,-522,-491,-552,-551,-525,-761,-767,-1687,-1589,-4129,-4129,-4129,-4129,-29972,-29973,-29981,-29981,-29981,-29982,-29983,-29984,-29984,-29985,-29985,-29986,-29986,-29987,-29987,-29988,-29990,-29988,-29988,-29980,-29980,-12680]} 1. e4 {[%emt 0:00:03]} e5 {[%emt 0:01:23]} 2. Nf3 {[%emt 0:00:04]} Nf6 {[%emt 0:00:16]} 3. Nc3 {[%emt 0:00:31]} Nc6 {[%emt 0:00:15]} 4. h3 {[%emt 0:00:07]} g6 {[%emt 0:00:05]} 5. Bc4 {[%emt 0:01:11]} Bg7 {[%emt 0:00:15][%cal Of6e4]} 6. d3 {[%emt 0:00:13]} d6 {[%emt 0:00:23]} 7. a4 {[%emt 0:00:05][%cal Ba2a4,Ba4a5][%mdl 32]} h6 {[%emt 0:03:08]} 8. a5 {[%emt 0:00:23] White is slightly better.} Qe7 {[%emt 0:01:18]} 9. Be3 {[%emt 0:02:13]} Nd8 {[%emt 0:01:31]} 10. Qd2 {[%emt 0:02:00]} Be6 {[%emt 0:00:33]} 11. Bb5+ {[%emt 0:04:05]} c6 {[%emt 0:02:02]} 12. Ba4 {[%emt 0:00:01]} Kf8 {[%emt 0:03:59]} 13. d4 {[%emt 0:05:24]} Kg8 {[%emt 0:18:26]} (13... Bc4 $14) 14. dxe5 $16 {[%emt 0:05:47]} dxe5 {[%emt 0:05:27]} 15. Nxe5 {[%emt 0:02:37]} Nxe4 {[%emt 0:00:50]} 16. Nxg6 {[%emt 0:05:50]} (16. Nxe4 Bxe5 17. O-O-O (17. Bxh6 $2 Rxh6 18. Qxh6 Qb4+ 19. c3 Qxe4+ 20. Qe3 Qxe3+ 21. fxe3 f6 $19) 17... Bd5 $14) 16... fxg6 {[%emt 0:08:33]} 17. Nxe4 {[%emt 0:00:10]} Nf7 {[%emt 0:00:19][%cal Ob7b5]} 18. Nc5 {[%emt 0:08:41]} Bd5 {[%emt 0:03:44][%cal Ob7b6]} 19. O-O {[%emt 0:01:37]} Kh7 {[%emt 0:07:07] [#]} (19... Ne5 $16) 20. Rfe1 $1 $18 {[%emt 0:03:23]} Qh4 {[%emt 0:10:27]} 21. Bb3 {[%emt 0:03:27]} Rad8 {[%emt 0:02:29][%cal Od5g2] And now ...Bxg2! would win.} 22. Qe2 {[%emt 0:02:07]} (22. Nxb7 Bxg2 (22... Bxb3 23. Nxd8 Rxd8 24. Qc1 $11) 23. Nxd8 Rxd8 24. Kxg2 Rxd2 25. Bxd2 Bxb2 $11) 22... Bxb3 {[%emt 0:04:15]} 23. cxb3 {[%emt 0:00:47][%cal Oa1a4]} Qe7 {[%emt 0:00:07]} 24. Ra4 {[%emt 0:03:00] Hoping for Re4.} Rhe8 {[%emt 0:04:08]} (24... Nd6 $142 25. Bd4 Qxe2 26. Rxe2 Rhe8) 25. Re4 {[%emt 0:02:00]} Qc7 {[%emt 0:00:08]} 26. Ne6 {[%emt 0:05:07]} Qxa5 {[%emt 0:00:16]} 27. Ra4 {[%emt 0:03:23]} (27. Nxd8 $6 Rxe4 28. Nxf7 Qc7 $16) 27... Qxe1+ {[%emt 0:02:51]} 28. Qxe1 {[%emt 0:00:02]} Rxe6 {[%emt 0:00:08]} 29. Rxa7 {[%emt 0:00:24]} Nd6 {[%emt 0:00:06]} 30. Qb4 {[%emt 0:02:32]} Rd7 {[%emt 0:01:04]} 31. g4 {[%emt 0:01:35]} Nb5 {[%emt 0:02:44]} 32. Qc4 $2 {[%emt 0:04:05]} (32. Ra2 $18) 32... Rxe3 $1 $17 {[%emt 0:00:06] Black is more active.} 33. Ra8 $2 {[%emt 0:00:08][%mdl 8192]} (33. fxe3 $17 Nxa7 34. h4) 33... Re1+ $19 {[%emt 0:00:24]} (33... Rxh3 34. Qg8#) 34. Kg2 {[%emt 0:00:06]} Rd5 $1 {[%emt 0:00:09]} (34... Bxb2 35. Qg8#) 35. h4 $2 {[%emt 0:02:33]} (35. b4) 35... Nd6 {[%emt 0:00:06]} (35... Bxb2 $2 36. Qf4 Nd6 37. Qf8 $18) 36. Qc2 {[%emt 0:01:23]} Re4 {[%emt 0:03:21]} 37. Ra4 {[%emt 0:02:30]} Rxa4 {[%emt 0:02:33]} (37... Bd4 $19 {has better winning chances.} 38. f3 Re6) 38. bxa4 $17 {[%emt 0:00:05]} h5 {[%emt 0:00:06]} 39. f3 {[%emt 0:00:31]} Bh6 {[%emt 0:00:15]} (39... Bf6 $19 40. Kh3 Bd4) 40. Qb3 {[%emt 0:02:26]} Rd2+ {[%emt 0:05:40]} (40... hxg4 $17 41. fxg4 Bg7) 41. Kg1 {[%emt 0:33:45] [#]} (41. Kf1 $1 $15) 41... Bg7 $1 {[%emt 0:34:13]} 42. Qe6 {[%emt 0:03:14]} Bxb2 {[%emt 0:02:17]} 43. Kh1 {[%emt 0:00:45]} (43. f4 $17) 43... Bg7 $19 {[%emt 0:01:36]} 44. Kg1 {[%emt 0:00:46]} c5 {[%emt 0:00:35]} 45. gxh5 {[%emt 0:03:12]} gxh5 {[%emt 0:00:06]} 46. f4 {[%emt 0:00:04]} Rd4 {[%emt 0:01:56][%csl LRa4,LRf4][%cal Oc5c4] ...c4! is the strong threat.} 47. Qe2 {[%emt 0:02:12]} (47. Kh2 {was worth a try.}) 47... c4 {[%emt 0:01:21] Strongly threatening ...c3.} (47... Rxf4 48. Qxh5+ Kg8 49. Qd5+ Nf7 50. Qxb7 Rxa4 51. Qb8+ Bf8 52. Qg3+ Kh8 53. Qf3 $15) 48. Qxh5+ {[%emt 0:01:20]} Kg8 {[%emt 0:00:07][%cal Oc4c3]} 49. Qg6 {[%emt 0:06:27]} c3 {[%emt 0:00:53][%cal Od4d2] aiming for ...Rd2!} 50. h5 {[%emt 0:00:21] Black must now prevent h6.} Nf7 {[%emt 0:00:49][%cal Od4d6] ...Rd6! would now be deadly.} 51. Qg4 {[%emt 0:00:31]} Rd8 {[%emt 0:00:00]} ({Worse is} 51... Rxa4 52. Qc8+ Kh7 (52... Bf8 53. Qg4+ Bg7 54. Qc8+ Kh7 55. Qf5+ Kg8 56. Qc8+ $11) 53. Qf5+ Kg8 54. Qc8+ Kh7 (54... Bf8 55. Qg4+ Bg7 56. Qc8+ $11) 55. Qf5+ Kg8 56. Qc8+ $11) 52. Qg6 {[%emt 0:00:00]} Rd6 {[%emt 0:00:00]} 53. Qb1 {[%emt 0:00:00]} Rd2 {[%emt 0:00:00] ( -> ...c2)} 54. Qe1 {[%emt 0:00:00]} Kf8 {[%emt 0:00:00]} 55. Kf1 {[%emt 0:00:00]} Bd4 {[%emt 0:00:00] Black mates.} 56. Qe6 {[%emt 0:00:00]} c2 {[%emt 0:00:00]} 57. Qc8+ {[%emt 0:00:00]} Kg7 {[%emt 0:00:00]} 58. Qg4+ {[%emt 0:00:00]} Kf6 {[%emt 0:00:00]} 59. Qh4+ {[%emt 0:00:00]} Kf5 {[%emt 0:00:00]} 60. Qh3+ {[%emt 0:00:00]} Ke4 {[%emt 0:00:00][%cal Rc2c1]} 61. Qh1+ {[%emt 0:00:00]} Kd3 {[%emt 0:00:00][%cal Rc2c1]} 62. Qh3+ {[%emt 0:00:00]} Kc4 {[%emt 0:00:00][%cal Rc2c1]} 63. Qc8+ {[%emt 0:06:50]} Kb3 {[%emt 0:00:00]} 64. Qxb7+ {[%emt 0:00:35]} Ka2 {[%emt 0:00:00][%cal Rc2c1]} 65. Qxf7+ {[%emt 0:00:53]} Ka1 {[%emt 0:00:00] Weighted Error Value: White=0.69/Black=0.18 (very precise) .  Loses game:     	White=1     	---        Missed win:     	White=1     	Black=1      Mistake:       	White=4     	Black=5      Inaccurate:     	White=3     	Black=2      OK:         	White=19    	Black=16     Best:        	White=2     	Black=5      Strong:       	---       	Black=3} (65... Kb1 $142 66. Qh7 Ka1 67. Qc7 Bb2 (67... Rd1+ $2 68. Kg2 $19) 68. f5 c1=Q+ (68... c1=R+ $2 69. Qxc1+ Bxc1 70. h6 $19) 69. Qxc1+ Bxc1 70. f6 Rh2 71. a5 Bb2 (71... Rxh5 {gets mated.} 72. f7 Bh6 73. Ke2 Rxa5 74. Kd3 Ra4 75. Kc3 Ka2 76. Kc2 Ra3 77. Kd1 Kb2 78. Ke1 Kc1 79. Ke2 Kc2 80. Kf2 Kd2 81. Kf1 Ke3 82. f8=B Bxf8 83. Kg2 Ke2 84. Kg1 Kf3 85. Kh1 Kg3 86. Kg1 Ra1#) 72. f7 Bg7 (72... Rxh5 73. f8=Q $14) 73. a6 Rxh5 (73... Ra2 $2 74. Ke1 $19) 74. Kf2 Rf5+ 75. Ke3 Rxf7 76. Ke4 Ra7 (76... Ka2 77. Ke3 Ra7 78. Kf4 Rxa6 79. Ke4 Ra5 80. Ke3 Kb2 81. Kf4 Kc3 82. Kg3 Be5+ 83. Kh4 Kd4 84. Kh5 Ke4 85. Kg6 Ra7 86. Kg5 Rg7+ 87. Kh4 Kf3 88. Kh5 Bf4 89. Kh4 Rh7#) 77. Kd5 Rxa6 78. Kc5 Kb2 79. Kd5 Kc2 80. Ke4 Ra5 81. Kf3 Ra4 82. Kf2 Be5 83. Kg2 Ra3 84. Kg1 Kd2 85. Kh1 Ke3 86. Kg2 Ra2+ 87. Kh1 Kf3 88. Kg1 Ra1#) 0-1

[Event "Reykjavik Open 2024"]
[Site "Reykjavik"]
[Date "2024.03.17"]
[Round "4.15"]
[White "Lu, Miaoyi"]
[Black "Suleymenov, Alisher"]
[Result "1/2-1/2"]
[ECO "B30"]
[WhiteElo "2392"]
[BlackElo "2506"]
[Annotator "TA"]
[PlyCount "65"]
[EventDate "2024.03.12"]
[EventCountry "ISL"]
[SourceTitle "playchess.com"]
[Source "ChessBase"]
[SourceQuality "1"]
[TimeControl "40/5400+30:1800+30"]

{[%evp 10,65,28,24,39,28,33,20,19,5,47,29,30,23,18,20,31,32,32,0,7,7,76,20,107,49,93,100,113,81,96,78,78,13,161,106,112,0,0,0,0,0,11,0,0,0,377,349,343,138,917,280,838,0,332,0,715,0]} 1. e4 {[%emt 0:00:02]} c5 {[%emt 0:00:06]} 2. Nf3 {[%emt 0:00:02]} Nc6 {[%emt 0:00:04]} 3. Bb5 {[%emt 0:00:04]} e6 {[%emt 0:00:05]} 4. O-O {[%emt 0:02:32]} Nge7 {[%emt 0:00:14]} 5. d4 {[%emt 0:03:00]} cxd4 {[%emt 0:00:59]} 6. Nxd4 {[%emt 0:00:02]} Ng6 {[%emt 0:00:12]} 7. Be3 {[%emt 0:00:07]} Be7 {[%emt 0:00:37]} 8. c3 {[%emt 0:00:02]} O-O {[%emt 0:00:10] The position is equal.} 9. Nd2 {[%emt 0:00:02]} a6 {[%emt 0:04:18] Hoping for ...Nxd4.} 10. Bd3 {[%emt 0:06:25]} Nxd4 {[%emt 0:04:26]} 11. cxd4 {[%emt 0:00:20]} d5 {[%emt 0:04:03]} 12. e5 {[%emt 0:00:43]} Bd7 {[%emt 0:01:40]} 13. a4 {[%emt 0:09:18][%cal Ba2a4,Ba4a5][%mdl 32]} Qb6 {[%emt 0:08:44]} 14. a5 {[%emt 0:10:15]} Qb4 {[%emt 0:15:10]} 15. Nf3 {[%emt 0:07:26]} Rfc8 {[%emt 0:06:54] [#]} (15... Bb5 $11) 16. h4 {[%emt 0:11:09]} (16. Bd2 $1 $16 Qxb2 17. Qe2) 16... Nf8 {[%emt 0:19:07]} (16... Rc7 $11) 17. h5 {[%emt 0:01:24]} (17. Bd2 $16 Qxb2 18. Rb1) 17... h6 {[%emt 0:00:05]} 18. Bd2 {[%emt 0:15:47]} Qxb2 {[%emt 0:00:10]} 19. Rb1 {[%emt 0:00:01]} Qa3 {[%emt 0:02:18]} 20. Qe2 {[%emt 0:04:34][%cal Ob1a1][%mdl 1024] Ra1! is the strong threat. White has strong compensation.} Bd8 {[%emt 0:01:03]} 21. Nh2 {[%emt 0:10:24]} (21. Rxb7 $6 Bxa5 22. Qe3 Qa2 $11) (21. Qe3 $1 $16 {[%cal Od3h7] Black must now prevent Bh7+!} Qe7 22. Rxb7) 21... Bg5 {[%emt 0:14:16]} (21... Bxa5 $2 22. Ra1 (22. Rxb7 Bxd2 23. Qxd2 Rab8 $17) 22... Qb2 23. Rxa5 (23. Bxa5 Qxd4 24. Rfd1 Qh4 $18) 23... Qxd4 24. Rb1 $18) (21... Bb5 $1 $11 22. Bxb5 axb5) 22. f4 {[%emt 0:04:37]} (22. Rxb7 $6 Bxd2 23. Qxd2 Rc3 $14) (22. Bxg5 $18 hxg5 23. Qe3 (23. Rxb7 Rc3 $14)) 22... Bd8 $16 {[%emt 0:00:16]} 23. Rf3 {[%emt 0:03:07] White is more active.} (23. Rxb7 $6 Bxa5 24. Qe3 Qa4 25. Bxa5 Qxa5 $11) ({Better is} 23. Qe3 $16 {[%cal Od3h7] Bh7+! would now be deadly.} Qe7 (23... Bxa5 $2 24. Bh7+ Nxh7 25. Qxa3 $18) 24. Rxb7) 23... Qa4 $11 {[%emt 0:02:54]} 24. Rg3 {[%emt 0:02:46]} Bh4 $1 {[%emt 0:01:27]} (24... Bxa5 $2 25. Qg4 g6 (25... Qxd4+ $2 26. Be3 $18) 26. Bxa5 $18) (24... Qxd4+ $2 25. Be3 Qc3 26. Qg4 $18) 25. Rh3 {[%emt 0:01:37]} Be7 {[%emt 0:00:07]} 26. Ng4 {[%emt 0:01:16]} (26. Nf3 {simplifies} Bb5 27. Bxb5 axb5 28. Qxb5 Qxb5 29. Rxb5 Bd8 30. Rh1) 26... Kh8 {[%emt 0:01:07]} 27. Rg3 {[%emt 0:02:13][%cal Og4h6] And now Nxh6! would win.} (27. Rxb7 Qxd4+ 28. Nf2 Bc5 $15) 27... f5 $2 {[%emt 0:04:14][%mdl 8192]} (27... Bh4 $11 {and Black is okay.} 28. Rh3 Bd8) 28. exf6 $18 {[%emt 0:00:30]} Bxf6 {[%emt 0:00:03] [#]} 29. Nxh6 $40 {[%emt 0:01:13][%mdl 128] White wants a kill.} Bh4 $2 {[%emt 0:06:15][%mdl 8192]} (29... gxh6 $2 {loses.} 30. Qg4 Qxd4+ 31. Be3 $18) (29... Bxd4+ 30. Kh2 Bb5 (30... gxh6 31. Qg4 Nh7 32. Qg6) 31. Nf7+ (31. Bxb5 axb5 32. Nf7+ Kg8 $18) 31... Kg8 32. Bxb5 axb5 33. Ne5) (29... Bb5 $16) 30. Nf7+ {[%emt 0:00:25]} Kg8 {[%emt 0:00:05]} 31. Nh6+ $2 {[%emt 0:00:10]} (31. Rxg7+ Kxg7 32. Ne5) 31... Kh8 {[%emt 0:00:04]} 32. Nf7+ $2 {[%emt 0:03:20]} (32. Rh3 Bf6 33. Nf7+ Kg8 34. Ne5) 32... Kg8 {[%emt 0:00:01]} 33. Nh6+ $2 {[%emt 0:00:43] Weighted Error Value: White=0.61/Black=0.50.  Loses game:     	---       	Black=4      Missed win:     	White=2     	---        Mistake:       	White=5     	Black=3      Inaccurate:     	White=1     	Black=3      OK:         	White=7     	Black=7      Best:        	White=3     	Black=2      Strong:       	---       	Black=1} ({White has to play} 33. Rxg7+ $18 Kxg7 34. Ne5) 1/2-1/2

[Event "Reykjavik Open 2024"]
[Site "Reykjavik"]
[Date "2024.03.17"]
[Round "4.16"]
[White "Dauner, Benedikt"]
[Black "Balakrishnan, Praveen"]
[Result "0-1"]
[ECO "D02"]
[WhiteElo "2366"]
[BlackElo "2490"]
[Annotator "TA"]
[PlyCount "62"]
[EventDate "2024.03.12"]
[EventCountry "ISL"]
[SourceTitle "playchess.com"]
[Source "ChessBase"]
[SourceQuality "1"]
[TimeControl "40/5400+30:1800+30"]

{[%evp 11,62,6,3,0,0,7,29,0,0,18,7,0,35,-20,-10,-37,-41,-36,-16,-41,-30,-37,-42,-52,-38,-26,-33,-45,-33,-31,-14,-21,-16,-34,-15,-25,-15,-812,-40,-47,-25,-39,-33,-96,-99,-104,-100,-82,-66,-185,-181,-650,-639]} 1. d4 {[%emt 0:03:48]} d5 {[%emt 0:03:18]} 2. Nf3 {[%emt 0:00:08]} Nf6 {[%emt 0:00:09]} 3. Bf4 {[%emt 0:00:19]} c5 {[%emt 0:00:10]} 4. e3 {[%emt 0:00:14]} Nc6 {[%emt 0:00:10]} 5. Nbd2 {[%emt 0:00:13]} Bg4 {[%emt 0:00:09]} 6. c3 {[%emt 0:02:21]} e6 {[%emt 0:00:21]} 7. h3 {[%emt 0:01:16]} Bxf3 {[%emt 0:01:06]} 8. Qxf3 {[%emt 0:01:54]} h6 {[%emt 0:12:11]} 9. Bd3 {[%emt 0:16:04] White has an edge.} Bd6 {[%emt 0:09:50]} 10. dxc5 {[%emt 0:11:47]} Bxc5 {[%emt 0:01:06] aiming for ...e5.} 11. e4 {[%emt 0:00:27]} d4 {[%emt 0:12:25]} 12. Nb3 {[%emt 0:04:28]} (12. Nc4 $14) 12... dxc3 $11 {[%emt 0:11:55]} 13. bxc3 {[%emt 0:00:12]} ({Reject} 13. Nxc5 cxb2 14. Rb1 Qa5+ 15. Bd2 Qxc5 16. Rxb2 O-O $17) 13... Bd6 {[%emt 0:01:04] Hoping for ...Bxf4.} 14. Bb5 {[%emt 0:09:30] And now e5 would win.} Bxf4 {[%emt 0:06:54]} (14... Qb6 $5 15. Bxd6 Qxb5 $15) 15. Qxf4 {[%emt 0:00:07]} Qb6 {[%emt 0:01:26]} 16. Nd4 {[%emt 0:03:25]} Qc5 {[%emt 0:02:49]} 17. Qf3 {[%emt 0:04:16]} O-O {[%emt 0:04:53]} 18. Bxc6 {[%emt 0:00:06]} bxc6 {[%emt 0:00:19]} 19. O-O {[%emt 0:00:10]} Qc4 {[%emt 0:02:07]} 20. Rfe1 {[%emt 0:08:09]} Rab8 {[%emt 0:08:39]} 21. Nb3 {[%emt 0:07:29]} Rfd8 {[%emt 0:05:07]} 22. Qe2 {[%emt 0:00:54]} Qxc3 {[%emt 0:09:30]} 23. Rac1 {[%emt 0:00:28]} Qb4 {[%emt 0:00:29]} 24. Rc3 $2 {[%emt 0:01:55][%mdl 8192] [#]} c5 $2 25. Rxc5 {[%emt 0:00:30]} Rbc8 {[%emt 0:00:44]} 26. Rxc8 {[%emt 0:12:44]} Rxc8 {[%emt 0:00:01]} 27. e5 {[%emt 0:10:04] [#]} ({White should try} 27. f3 $1 $15) 27... Rc2 $1 $36 {[%emt 0:02:06][%mdl 2048] Black has strong initiative.} 28. Qd1 {[%emt 0:00:27]} (28. Qf1 Nd5) 28... Nd5 {[%emt 0:00:54]} (28... Rxa2 29. exf6 Qf4 30. Qd8+ Kh7 31. Qd3+ Kg8 32. Qd4 Qxf6 33. Qxf6 gxf6 34. Nc5 $16) 29. Re2 {[%emt 0:00:06]} Rc3 {[%emt 0:01:06] Black has more active pieces.} 30. Qd2 {[%emt 0:00:46]} (30. Rd2 $15) 30... a5 $19 {[%emt 0:00:50]} 31. Re1 $2 {[%emt 0:00:31]} (31. Nd4) 31... Rxb3 {[%emt 0:00:08] Weighted Error Value: White=0.60/Black=0.30.  Loses game:     	White=1     	---        Missed win:     	---       	Black=1      Mistake:       	White=4     	---        Inaccurate:     	White=2     	Black=1      OK:         	White=6     	Black=10     Best:        	White=1     	Black=1} 0-1